bitfinex/quotes_BTCUSD_20241103
["timestamp","ask_amount","ask_price","bid_price","bid_amount"]
[1730661726773,0.003,68426.0,68423.0,0.29732265]
[1730661727006,0.003,68426.0,68425.0,0.075]
[1730661727252,0.149143,68426.0,68425.0,0.075]
[1730661727512,0.146143,68426.0,68425.0,0.00502231]
[1730661727756,0.2830259,68426.0,68425.0,0.00502231]
[1730661727979,0.2830259,68426.0,68421.0,0.001638]
[1730661727980,0.146151,68422.0,68421.0,0.001638]
[1730661728206,0.47499021,68422.0,68421.0,0.001638]
[1730661728451,0.73013555,68422.0,68421.0,0.001638]
[1730661728689,0.66250885,68422.0,68421.0,0.001638]
[1730661728928,1.00819285,68422.0,68421.0,0.001638]
[1730661729174,1.00819285,68422.0,68420.0,0.001638]
[1730661729175,0.251153,68421.0,68420.0,0.001638]
[1730661729421,0.251153,68421.0,68417.0,0.001638]
[1730661729422,0.25116,68418.0,68417.0,0.001638]
[1730661729674,0.74999567,68418.0,68417.0,0.001638]
[1730661730161,0.74999567,68418.0,68391.0,0.075]
[1730661730162,0.146188,68405.0,68386.0,0.292455]
[1730661730401,0.3576458,68405.0,68391.0,0.146217]
[1730661730583,0.33762587,68405.0,68391.0,0.146217]
[1730661730890,0.146198,68400.0,68386.0,0.292455]
[1730661731139,0.29199504,68400.0,68386.0,0.146228]
[1730661731369,0.29199504,68400.0,68385.0,0.22570995]
[1730661731370,0.49927833,68400.0,68392.0,0.22070995]
[1730661731607,0.45358299,68400.0,68392.0,0.22070995]
[1730661732064,0.29199504,68400.0,68392.0,0.22070995]
[1730661732555,0.21185663,68400.0,68392.0,0.22070995]
[1730661732782,0.18996563,68403.0,68399.0,0.147836]
[1730661733030,0.04777163,68405.0,68400.0,0.146197]
[1730661733243,0.04777163,68405.0,68402.0,0.146193]
[1730661733459,0.19395963,68405.0,68401.0,0.146194]
[1730661733683,0.04777163,68405.0,68402.0,0.146193]
[1730661733905,0.18995763,68406.0,68402.0,0.146193]
[1730661734152,0.33614363,68406.0,68399.0,0.001636]
[1730661734375,0.146185,68407.0,68399.0,0.001636]
[1730661734622,0.146185,68407.0,68402.0,0.146192]
[1730661734623,0.002,68403.0,68402.0,0.146192]
[1730661734878,0.146186,68406.0,68402.0,0.146192]
[1730661735083,0.001,68405.0,68402.0,0.146192]
[1730661735293,0.001,68405.0,68400.0,0.146197]
[1730661735521,0.151186,68406.0,68400.0,0.292397]
[1730661735736,0.146188,68405.0,68402.0,0.001]
[1730661735948,0.151186,68406.0,68402.0,0.147193]
[1730661736140,0.146186,68406.0,68402.0,0.146193]
[1730661736355,0.146186,68406.0,68399.0,0.001636]
[1730661736356,0.002,68407.0,68406.0,0.146186]
[1730661737048,0.04377163,68412.0,68400.0,0.075]
[1730661737264,0.04377163,68412.0,68411.0,0.146175]
[1730661737493,0.04377163,68415.0,68409.0,0.292356]
[1730661737718,0.04377163,68415.0,68401.0,0.22070995]
[1730661737719,0.04377163,68415.0,68414.0,0.146168]
[1730661737943,0.26448158,68417.0,68416.0,0.146164]
[1730661738402,0.04377163,68418.0,68417.0,0.146162]
[1730661738414,0.04377163,68418.0,68412.0,0.00292326]
[1730661738415,0.26448158,68421.0,68416.0,0.00957658]
[1730661738623,0.26448158,68421.0,68420.0,0.146156]
[1730661738624,0.22070995,68421.0,68420.0,0.146156]
[1730661738893,0.04377163,68424.0,68421.0,0.146153]
[1730661739127,0.04377163,68424.0,68420.0,0.0095699]
[1730661739345,0.04377163,68423.0,68419.0,0.146157]
[1730661739575,0.04377163,68423.0,68420.0,0.146155]
[1730661739816,0.04377163,68424.0,68420.0,0.146155]
[1730661740042,0.04377163,68424.0,68421.0,0.00956823]
[1730661740729,0.04377163,68424.0,68421.0,0.15572023]
[1730661741190,0.06242915,68424.0,68421.0,0.00956823]
[1730661741895,0.18992063,68423.0,68421.0,0.00956823]
[1730661742123,0.18992063,68423.0,68420.0,0.001]
[1730661742124,0.04377163,68423.0,68420.0,0.146155]
[1730661742349,0.06242915,68424.0,68420.0,0.146155]
[1730661742573,0.06242915,68424.0,68421.0,0.00958102]
[1730661743229,0.23362758,68423.0,68421.0,0.00958102]
[1730661743461,0.146151,68422.0,68421.0,0.00958102]
[1730661743677,0.42354721,68423.0,68417.0,0.001638]
[1730661743678,0.13124821,68423.0,68417.0,0.001638]
[1730661743888,0.146154,68421.0,68417.0,0.001638]
[1730661744098,0.20819315,68421.0,68418.0,0.00958602]
[1730661744537,0.20819315,68421.0,68417.0,0.001638]
[1730661744966,0.20819315,68421.0,68418.0,0.00958602]
[1730661745187,0.20819315,68421.0,68417.0,0.001638]
[1730661745188,0.20819315,68421.0,68417.0,0.002638]
[1730661745402,0.20819315,68421.0,68418.0,0.01058602]
[1730661745625,0.20819315,68421.0,68418.0,0.00958602]
[1730661745995,0.10083523,68420.0,68417.0,0.002638]
[1730661746122,0.04377163,68423.0,68422.0,0.146151]
[1730661746345,0.04377163,68425.0,68422.0,0.00957935]
[1730661746579,0.04377163,68425.0,68423.0,0.146149]
[1730661746797,0.04377163,68426.0,68424.0,0.00957601]
[1730661747020,0.04375388,68426.0,68424.0,0.00957601]
[1730661747257,0.04375388,68426.0,68418.0,0.29232]
[1730661747497,0.146146,68425.0,68420.0,0.146155]
[1730661747738,0.18989988,68425.0,68420.0,0.146155]
[1730661747957,0.146146,68425.0,68420.0,0.146155]
[1730661748610,0.146146,68425.0,68421.0,0.146153]
[1730661748834,0.18989988,68425.0,68421.0,0.146153]
[1730661749086,0.24397224,68425.0,68421.0,0.146153]
[1730661749321,0.24397224,68425.0,68417.0,0.001638]
[1730661749322,0.001,68425.0,68424.0,0.146147]
[1730661749802,0.003,68425.0,68424.0,0.200747]
[1730661750273,0.000819,68431.0,68430.0,0.146134]
[1730661751004,0.000819,68431.0,68430.0,0.22945633]
[1730661751237,0.000819,68431.0,68430.0,0.38025337]
[1730661751456,0.000819,68431.0,68430.0,0.37733104]
[1730661752830,0.000819,68431.0,68430.0,0.38306569]
[1730661753053,0.000819,68431.0,68430.0,0.37733104]
[1730661753791,0.000819,68431.0,68430.0,0.39133104]
[1730661754246,0.000819,68431.0,68430.0,0.40033104]
[1730661754462,0.000819,68431.0,68430.0,0.37233104]
[1730661754675,0.000819,68431.0,68430.0,0.37733104]
[1730661754890,0.000819,68431.0,68430.0,0.39133104]
[1730661755110,0.000819,68431.0,68430.0,0.37733104]
[1730661755539,0.000819,68431.0,68430.0,0.235534]
[1730661755987,0.000819,68431.0,68430.0,0.160134]
[1730661757178,0.000819,68431.0,68430.0,0.159134]
[1730661757426,0.000819,68431.0,68430.0,0.151134]
[1730661757661,0.000819,68431.0,68430.0,0.157134]
[1730661759077,0.000819,68431.0,68430.0,0.16005639]
[1730661759802,0.000819,68431.0,68430.0,0.39345343]
[1730661760039,0.000819,68431.0,68430.0,0.37953104]
[1730661760280,0.000819,68431.0,68430.0,0.38653104]
[1730661760512,0.000819,68431.0,68430.0,0.39253104]
[1730661760993,0.000819,68431.0,68430.0,0.38653104]
[1730661761260,0.000819,68431.0,68430.0,0.37453104]
[1730661761499,0.000819,68431.0,68430.0,0.256734]
[1730661762383,0.000819,68431.0,68430.0,0.242734]
[1730661762566,0.000819,68431.0,68430.0,0.228734]
[1730661763468,0.000819,68431.0,68430.0,0.242734]
[1730661763719,0.000819,68431.0,68430.0,0.256734]
[1730661763959,0.000819,68431.0,68430.0,0.228734]
[1730661764210,0.000819,68431.0,68430.0,0.256734]
[1730661764900,0.000819,68431.0,68430.0,0.51045316]
[1730661765122,0.000819,68431.0,68430.0,0.49553104]
[1730661765365,0.000819,68431.0,68430.0,0.50553104]
[1730661765857,0.000819,68431.0,68430.0,0.49153104]
[1730661766089,0.000819,68431.0,68430.0,0.50253104]
[1730661766578,0.000819,68431.0,68430.0,0.52453104]
[1730661767085,0.000819,68431.0,68430.0,0.55253104]
[1730661768250,0.000819,68431.0,68430.0,0.55060429]
[1730661768483,0.000819,68431.0,68430.0,0.57560429]
[1730661769218,0.001,68439.0,68430.0,0.57560429]
[1730661769219,0.001,68439.0,68438.0,0.156117]
[1730661769485,0.001,68439.0,68438.0,0.68788929]
[1730661769712,0.001,68439.0,68438.0,0.661968]
[1730661770660,0.001,68439.0,68438.0,0.689968]
[1730661771409,0.001,68439.0,68438.0,0.712968]
[1730661771875,0.001,68439.0,68438.0,0.684968]
[1730661772108,0.001,68439.0,68438.0,0.698968]
[1730661772349,0.001,68439.0,68438.0,0.70658882]
[1730661772584,0.001,68439.0,68438.0,0.69058882]
[1730661773039,0.001,68439.0,68438.0,0.70458882]
[1730661773765,0.001,68439.0,68438.0,0.71858882]
[1730661773993,0.001,68439.0,68438.0,0.70458882]
[1730661774455,0.001,68439.0,68438.0,0.71858882]
[1730661774680,0.001,68439.0,68438.0,0.69058882]
[1730661775157,0.001,68439.0,68438.0,0.71858882]
[1730661775609,0.001,68439.0,68438.0,0.70458882]
[1730661775841,0.001,68439.0,68438.0,0.71858882]
[1730661776673,0.001,68439.0,68438.0,0.70458882]
[1730661776675,0.001,68439.0,68438.0,0.71858882]
[1730661777045,0.001,68439.0,68438.0,0.70458882]
[1730661777432,0.001,68439.0,68438.0,0.71858882]
[1730661777860,0.001819,68439.0,68438.0,0.71858882]
[1730661782255,0.001819,68439.0,68438.0,0.72058882]
[1730661782701,0.001819,68439.0,68438.0,0.71858882]
[1730661782911,0.001819,68439.0,68438.0,0.72510732]
[1730661783375,0.001819,68439.0,68438.0,0.71110732]
[1730661783603,0.001819,68439.0,68438.0,0.70458882]
[1730661783827,0.001819,68439.0,68438.0,0.69058882]
[1730661784044,0.001819,68439.0,68438.0,0.70458882]
[1730661784502,0.001819,68439.0,68438.0,0.71858882]
[1730661784955,0.001819,68439.0,68438.0,0.87258882]
[1730661785188,0.001819,68439.0,68438.0,0.71858882]
[1730661788300,0.001819,68439.0,68438.0,0.72058882]
[1730661788516,0.001819,68439.0,68438.0,0.71858882]
[1730661788743,0.001819,68439.0,68438.0,0.69558882]
[1730661790095,0.001819,68439.0,68438.0,0.65710873]
[1730661790325,0.001819,68439.0,68438.0,0.65058882]
[1730661791848,0.001819,68439.0,68438.0,0.65711103]
[1730661792278,0.001819,68439.0,68438.0,0.65711132]
[1730661794737,0.001819,68439.0,68438.0,0.87982127]
[1730661794968,0.001819,68439.0,68438.0,0.68011132]
[1730661796114,0.001819,68439.0,68438.0,0.68011871]
[1730661796342,0.001819,68439.0,68438.0,0.65711871]
[1730661798751,0.001819,68439.0,68438.0,0.63658882]
[1730661798980,0.001819,68439.0,68438.0,0.64312372]
[1730661799689,0.001819,68439.0,68438.0,0.64512372]
[1730661799916,0.001819,68439.0,68438.0,0.65558098]
[1730661800149,0.001819,68439.0,68438.0,0.66958098]
[1730661800365,0.001819,68439.0,68438.0,0.65558098]
[1730661800594,0.22070995,68458.0,68446.0,0.0878]
[1730661800808,0.22070995,68458.0,68446.0,0.81326092]
[1730661801031,0.22070995,68458.0,68446.0,0.81033986]
[1730661801449,0.22070995,68458.0,68446.0,0.82079712]
[1730661801676,0.22070995,68458.0,68446.0,0.81033986]
[1730661801896,0.22070995,68458.0,68446.0,0.68334316]
[1730661802102,0.001,68459.0,68446.0,1.06249459]
[1730661802337,0.001,68459.0,68446.0,0.84378464]
[1730661802563,0.001,68459.0,68446.0,0.83333528]
[1730661803015,0.001,68459.0,68446.0,0.85578464]
[1730661803241,0.001,68459.0,68458.0,0.54302796]
[1730661803517,1e-06,68459.0,68458.0,0.54955828]
[1730661803748,1e-06,68459.0,68458.0,0.5884702]
[1730661804208,0.001,68479.0,68473.0,0.01]
[1730661804438,0.001,68479.0,68473.0,0.47820492]
[1730661804658,0.001,68479.0,68478.0,0.151032]
[1730661804890,0.001,68479.0,68478.0,0.434283]
[1730661805132,0.001,68479.0,68478.0,0.29182904]
[1730661805371,0.001,68479.0,68478.0,0.146032]
[1730661805822,0.001,68479.0,68478.0,0.36674195]
[1730661806050,0.001,68479.0,68478.0,0.146032]
[1730661806280,0.001,68479.0,68478.0,0.29974931]
[1730661806494,0.001,68479.0,68478.0,0.30182904]
[1730661807164,0.001,68479.0,68478.0,0.32282904]
[1730661807451,0.001,68479.0,68478.0,0.31182904]
[1730661807673,0.001,68479.0,68478.0,0.30182904]
[1730661807919,0.001,68479.0,68478.0,0.32982904]
[1730661811036,0.001,68479.0,68478.0,0.30182904]
[1730661812413,0.001,68479.0,68478.0,0.31582904]
[1730661812852,0.001,68479.0,68478.0,0.30182904]
[1730661813068,0.001,68479.0,68478.0,0.31582904]
[1730661813282,0.001,68479.0,68478.0,0.151032]
[1730661813699,0.001,68479.0,68478.0,0.165032]
[1730661813911,0.001,68479.0,68478.0,0.179032]
[1730661814121,0.001,68479.0,68478.0,0.174032]
[1730661814339,0.001,68479.0,68478.0,0.179032]
[1730661814556,0.001819,68479.0,68478.0,0.174032]
[1730661815199,0.001819,68479.0,68478.0,0.160032]
[1730661815422,0.001819,68479.0,68478.0,0.146032]
[1730661815629,0.001819,68479.0,68478.0,0.160032]
[1730661815845,0.001819,68479.0,68478.0,0.174032]
[1730661816054,0.001819,68479.0,68478.0,0.151032]
[1730661816293,0.001819,68479.0,68478.0,0.146032]
[1730661816518,0.001819,68479.0,68478.0,0.169032]
[1730661817371,0.001819,68479.0,68478.0,0.174032]
[1730661817624,0.001819,68479.0,68478.0,0.169032]
[1730661818318,0.001819,68479.0,68478.0,0.174032]
[1730661818771,0.001819,68479.0,68478.0,0.169032]
[1730661820369,0.001819,68479.0,68478.0,0.54553899]
[1730661820599,0.00288857,68488.0,68487.0,0.29346696]
[1730661820823,0.00288857,68488.0,68487.0,0.439264]
[1730661822157,0.22093352,68494.0,68493.0,0.146]
[1730661822594,0.00022357,68494.0,68493.0,0.146]
[1730661822853,0.00022357,68494.0,68493.0,0.29679704]
[1730661823332,0.00022357,68494.0,68493.0,0.30379704]
[1730661823572,0.00022357,68494.0,68493.0,0.30279704]
[1730661824023,0.00022357,68494.0,68493.0,0.29679704]
[1730661825167,0.00022357,68494.0,68493.0,0.40179704]
[1730661825400,0.00022357,68494.0,68493.0,0.41579704]
[1730661825616,0.00022357,68494.0,68493.0,0.42279704]
[1730661825851,0.00022357,68494.0,68493.0,0.46389704]
[1730661826109,0.000827,68498.0,68493.0,0.46389704]
[1730661826110,0.001,68519.0,68517.0,0.01]
[1730661826351,0.001,68519.0,68518.0,0.255947]
[1730661827012,0.001,68519.0,68518.0,0.40174404]
[1730661827254,0.001,68519.0,68518.0,0.42474404]
[1730661827482,0.001,68519.0,68518.0,0.51010587]
[1730661827732,0.001,68519.0,68518.0,0.51576361]
[1730661828462,0.001,68519.0,68518.0,0.51575622]
[1730661828944,0.001,68519.0,68518.0,0.52130178]
[1730661829160,0.001,68519.0,68518.0,0.53530178]
[1730661829391,0.001,68519.0,68518.0,0.51564404]
[1730661829838,0.001,68519.0,68518.0,0.52964404]
[1730661830077,0.001,68519.0,68518.0,0.50164404]
[1730661830493,0.001,68519.0,68518.0,0.52964404]
[1730661830728,0.001,68519.0,68518.0,0.53164404]
[1730661830970,0.001,68519.0,68518.0,0.51764404]
[1730661831439,0.001,68519.0,68518.0,0.56012756]
[1730661831669,0.001,68519.0,68518.0,0.50364404]
[1730661832129,0.001,68519.0,68518.0,0.51764404]
[1730661832360,0.001,68519.0,68518.0,0.53164404]
[1730661832586,0.001,68519.0,68518.0,0.50364404]
[1730661832843,0.001,68519.0,68518.0,1.21764404]
[1730661833793,0.001,68519.0,68518.0,1.23164404]
[1730661834028,0.001,68519.0,68518.0,1.24564404]
[1730661834725,0.001,68519.0,68518.0,1.24064404]
[1730661834956,0.001,68519.0,68518.0,1.24364404]
[1730661835209,0.001,68519.0,68518.0,1.22964404]
[1730661835591,0.001,68519.0,68518.0,1.21564404]
[1730661835592,0.001,68519.0,68518.0,1.22964404]
[1730661835807,0.001,68519.0,68518.0,1.20164404]
[1730661836024,0.001,68519.0,68518.0,1.17864404]
[1730661836251,0.001,68519.0,68518.0,1.20664404]
[1730661836479,0.001,68519.0,68518.0,1.19264404]
[1730661837595,0.001,68519.0,68518.0,1.14501404]
[1730661837820,0.001,68519.0,68518.0,0.41574404]
[1730661838107,0.001,68519.0,68518.0,0.39674404]
[1730661838482,0.001,68519.0,68518.0,0.42474404]
[1730661838713,0.001818,68519.0,68518.0,0.41074404]
[1730661838934,0.001818,68519.0,68518.0,0.40574404]
[1730661839158,0.001818,68519.0,68518.0,0.31974404]
[1730661839381,0.001818,68519.0,68518.0,0.30574404]
[1730661839604,0.001818,68519.0,68518.0,0.31974404]
[1730661839818,0.001818,68519.0,68518.0,0.30574404]
[1730661840057,0.001818,68519.0,68518.0,0.29674404]
[1730661840290,0.001818,68519.0,68518.0,0.30774404]
[1730661841438,0.291821,68535.0,68524.0,0.291865]
[1730661841665,0.145918,68532.0,68527.0,0.145927]
[1730661842160,0.145913,68534.0,68529.0,0.145923]
[1730661842382,0.0089879,68536.0,68532.0,0.145916]
[1730661842608,0.0089879,68536.0,68527.0,0.291855]
[1730661842830,0.001,68532.0,68529.0,0.145923]
[1730661843054,0.002,68532.0,68529.0,0.145923]
[1730661843287,0.001,68532.0,68526.0,0.29186]
[1730661843510,0.001,68532.0,68531.0,0.145919]
[1730661843938,0.001,68532.0,68529.0,0.145922]
[1730661844384,0.145913,68534.0,68529.0,0.145922]
[1730661844601,0.145913,68534.0,68530.0,0.14592]
[1730661845036,0.145916,68533.0,68528.0,0.145924]
[1730661845259,0.145916,68533.0,68525.0,0.291862]
[1730661845260,0.145916,68533.0,68529.0,0.145922]
[1730661845766,0.0089879,68536.0,68532.0,0.291834]
[1730661845988,0.0089879,68536.0,68535.0,0.14591]
[1730661846447,0.0089879,68536.0,68535.0,0.29670704]
[1730661846678,0.0089879,68536.0,68535.0,0.29170704]
[1730661847144,0.0089879,68536.0,68531.0,0.005]
[1730661847145,0.0089879,68536.0,68527.0,0.291855]
[1730661847369,0.0089879,68536.0,68535.0,0.14591]
[1730661847594,0.0089879,68536.0,68535.0,0.51741699]
[1730661847819,0.0089879,68536.0,68535.0,0.42470704]
[1730661848547,0.001,68539.0,68535.0,0.42470704]
[1730661848548,0.001,68539.0,68538.0,0.46455796]
[1730661848771,0.001,68539.0,68538.0,0.610355]
[1730661848994,0.001,68539.0,68538.0,0.608355]
[1730661849687,0.001,68539.0,68538.0,0.622355]
[1730661849914,0.001,68539.0,68538.0,1.322355]
[1730661850593,0.001,68539.0,68538.0,1.16190104]
[1730661850815,0.001,68539.0,68538.0,1.322355]
[1730661851266,0.001,68539.0,68538.0,0.599355]
[1730661851962,0.001,68539.0,68538.0,0.613355]
[1730661852422,0.001,68539.0,68538.0,0.636355]
[1730661853510,0.22070995,68555.0,68554.0,0.14587]
[1730661853751,0.0139879,68571.0,68559.0,0.145859]
[1730661853752,4.49e-05,68563.0,68559.0,0.145859]
[1730661853985,4.49e-05,68563.0,68555.0,0.291736]
[1730661854223,4.49e-05,68563.0,68557.0,0.145862]
[1730661854447,4.49e-05,68563.0,68558.0,0.14586]
[1730661854943,4.49e-05,68563.0,68555.0,0.43753304]
[1730661854944,0.145853,68562.0,68555.0,0.14579704]
[1730661855169,0.145853,68562.0,68554.0,0.150869]
[1730661855620,0.001,68563.0,68554.0,0.145868]
[1730661855838,0.145858,68560.0,68551.0,0.145876]
[1730661856104,0.437561,68562.0,68553.0,0.145871]
[1730661856341,0.3706315,68562.0,68550.0,0.291753]
[1730661856581,0.145879,68550.0,68548.0,0.22070995]
[1730661856835,0.291723,68558.0,68548.0,0.22070995]
[1730661857076,0.1245,68560.0,68548.0,0.22070995]
[1730661857077,0.1245,68560.0,68549.0,0.00291762]
[1730661857311,0.1245,68560.0,68554.0,0.145869]
[1730661857539,0.1245,68560.0,68549.0,0.15079704]
[1730661857767,0.1245,68560.0,68550.0,0.15079704]
[1730661857992,0.1245,68560.0,68548.0,0.51247395]
[1730661858221,0.1245,68560.0,68550.0,0.145878]
[1730661858470,0.291719,68559.0,68550.0,0.145878]
[1730661858697,0.145866,68557.0,68550.0,0.145877]
[1730661858920,0.291724,68558.0,68550.0,0.001]
[1730661859151,0.002,68570.0,68556.0,0.291732]
[1730661859152,0.291694,68565.0,68556.0,0.291732]
[1730661859384,0.145852,68563.0,68556.0,0.14579704]
[1730661859618,0.145851,68563.0,68557.0,0.145863]
[1730661859853,0.145856,68561.0,68550.0,0.001]
[1730661860100,0.0765,68566.0,68555.0,0.22070995]
[1730661860328,0.145858,68560.0,68555.0,0.22070995]
[1730661860557,0.14586,68559.0,68553.0,0.14587]
[1730661860787,0.29173,68557.0,68546.0,0.291773]
[1730661861132,0.2917,68564.0,68546.0,0.291773]
[1730661861133,0.0454,68558.0,68550.0,0.003]
[1730661861258,0.0454,68558.0,68542.0,0.29179]
[1730661861491,0.145879,68550.0,68545.0,0.145888]
[1730661861935,0.145883,68548.0,68542.0,0.145894]
[1730661862192,0.291753,68551.0,68540.0,0.22070995]
[1730661862441,0.145895,68543.0,68540.0,0.22070995]
[1730661862680,0.145892,68544.0,68540.0,0.22070995]
[1730661862919,0.079,68552.0,68541.0,0.14579704]
[1730661863142,0.079,68552.0,68541.0,0.43759104]
[1730661863367,0.079,68552.0,68545.0,0.145888]
[1730661863606,0.079,68552.0,68551.0,0.145876]
[1730661863867,0.0454,68558.0,68548.0,0.004]
[1730661864095,0.0454,68558.0,68554.0,0.145869]
[1730661864339,0.291703,68563.0,68555.0,0.22070995]
[1730661864571,0.291689,68567.0,68549.0,0.43755804]
[1730661864572,0.04545924,68562.0,68549.0,0.43755804]
[1730661864814,0.005,68567.0,68550.0,0.2236271]
[1730661865072,0.145853,68562.0,68557.0,0.145862]
[1730661865324,0.145853,68562.0,68558.0,0.145861]
[1730661865567,0.145853,68562.0,68556.0,0.291731]
[1730661865784,0.145854,68562.0,68558.0,0.14586]
[1730661866463,0.291707,68562.0,68552.0,0.291748]
[1730661866679,0.291715,68560.0,68553.0,0.14579704]
[1730661866926,0.291715,68560.0,68550.0,0.51246595]
[1730661867156,0.291715,68560.0,68556.0,0.03]
[1730661867404,0.147854,68562.0,68552.0,0.291748]
[1730661867652,0.001,68562.0,68556.0,0.145865]
[1730661867871,0.14586,68559.0,68554.0,0.291737]
[1730661868094,0.14586,68559.0,68555.0,0.145868]
[1730661868335,0.000817,68566.0,68554.0,0.291737]
[1730661868578,0.000817,68566.0,68556.0,0.001]
[1730661868579,0.001,68562.0,68556.0,0.001]
[1730661868845,0.145863,68558.0,68553.0,0.14587]
[1730661869114,0.291715,68560.0,68550.0,0.22070995]
[1730661869360,0.437598,68556.0,68555.0,0.001]
[1730661869622,0.516598,68556.0,68555.0,0.001]
[1730661869857,0.516598,68556.0,68540.0,0.22070995]
[1730661869858,0.079,68556.0,68548.0,0.22070995]
[1730661870312,0.29174,68554.0,68548.0,0.22070995]
[1730661870564,0.291745,68553.0,68548.0,0.22070995]
[1730661870812,0.0707863,68554.0,68540.0,0.22070995]
[1730661871084,0.0707863,68554.0,68541.0,0.14579704]
[1730661871326,0.079,68556.0,68542.0,0.145894]
[1730661871559,0.145887,68546.0,68542.0,0.145895]
[1730661871825,0.079,68556.0,68534.0,0.22070995]
[1730661871826,0.291787,68543.0,68534.0,0.22070995]
[1730661872080,0.1244,68544.0,68534.0,0.22070995]
[1730661872081,0.291806,68539.0,68534.0,0.22070995]
[1730661872322,0.14591,68535.0,68534.0,0.22070995]
[1730661872544,0.45980798,68544.0,68534.0,0.22070995]
[1730661872545,0.145908,68536.0,68534.0,0.22070995]
[1730661872806,0.145898,68541.0,68537.0,0.145905]
[1730661873038,0.005,68553.0,68534.0,0.22070995]
[1730661873039,0.18950898,68547.0,68538.0,0.14579704]
[1730661873289,0.291757,68550.0,68539.0,0.291804]
[1730661873290,0.33538098,68550.0,68539.0,0.291804]
[1730661873544,0.33538098,68550.0,68535.0,0.005]
[1730661873545,0.04362398,68553.0,68546.0,0.22070995]
[1730661873831,0.04362398,68553.0,68537.0,0.1]
[1730661873832,0.22070995,68554.0,68539.0,0.291804]
[1730661874079,0.079,68555.0,68540.0,0.36660895]
[1730661874080,0.001,68543.0,68540.0,0.36660895]
[1730661874305,0.001,68543.0,68540.0,0.22070995]
[1730661874558,0.291757,68550.0,68534.0,0.293457]
[1730661874793,0.291766,68548.0,68546.0,0.007]
[1730661875287,0.145896,68542.0,68538.0,0.147903]
[1730661875509,0.583532,68548.0,68534.0,0.001634]
[1730661875510,0.25091,68535.0,68534.0,0.001634]
[1730661875744,0.31140127,68535.0,68534.0,0.001634]
[1730661875987,0.53988343,68535.0,68534.0,0.001634]
[1730661876262,0.41408091,68535.0,68534.0,0.001634]
[1730661876487,0.79300373,68535.0,68534.0,0.001634]
[1730661876719,0.87090373,68535.0,68534.0,0.001634]
[1730661877435,0.78355664,68535.0,68534.0,0.001634]
[1730661877661,0.87582065,68535.0,68534.0,0.001634]
[1730661877912,0.005,68524.0,68508.0,0.001636]
[1730661878154,0.145964,68510.0,68509.0,0.22070995]
[1730661878608,0.145964,68510.0,68508.0,0.001636]
[1730661878609,0.145966,68509.0,68508.0,0.001636]
[1730661879083,0.223866,68509.0,68508.0,0.001636]
[1730661879309,0.223866,68509.0,68508.0,0.002636]
[1730661879764,0.223866,68509.0,68508.0,0.001636]
[1730661880987,0.228866,68509.0,68508.0,0.001636]
[1730661881226,0.335091,68509.0,68508.0,0.002636]
[1730661881473,0.235866,68509.0,68508.0,0.002636]
[1730661881690,0.235866,68509.0,68508.0,0.001636]
[1730661881691,0.223866,68509.0,68508.0,0.001636]
[1730661881909,0.226866,68509.0,68508.0,0.001636]
[1730661882133,0.231866,68509.0,68508.0,0.001636]
[1730661883010,0.228866,68509.0,68508.0,0.001636]
[1730661883229,0.223866,68509.0,68508.0,0.001636]
[1730661883688,0.328091,68509.0,68508.0,0.001636]
[1730661883976,0.228866,68509.0,68508.0,0.001636]
[1730661884202,0.233866,68509.0,68508.0,0.001636]
[1730661884640,0.237866,68509.0,68508.0,0.001636]
[1730661884885,0.237866,68509.0,68508.0,0.147604]
[1730661884886,0.014,68509.0,68508.0,0.147604]
[1730661885399,0.159966,68509.0,68508.0,0.001636]
[1730661885860,0.01,68509.0,68508.0,0.001636]
[1730661886081,0.155966,68509.0,68508.0,0.001636]
[1730661886568,0.001,68509.0,68508.0,0.010636]
[1730661887013,0.002,68509.0,68508.0,0.019636]
[1730661887246,0.002,68509.0,68508.0,0.010636]
[1730661887706,0.002,68509.0,68508.0,0.001636]
[1730661887952,0.145966,68509.0,68508.0,0.001636]
[1730661888209,0.145966,68509.0,68508.0,0.004636]
[1730661888436,0.145966,68509.0,68508.0,0.005636]
[1730661888899,0.145966,68509.0,68508.0,0.004636]
[1730661889146,0.145966,68509.0,68508.0,0.007636]
[1730661889371,0.145964,68510.0,68508.0,0.007636]
[1730661889837,0.291923,68511.0,68508.0,0.007636]
[1730661890550,0.145966,68509.0,68508.0,0.007636]
[1730661890815,0.145966,68509.0,68508.0,0.004636]
[1730661891332,0.145966,68509.0,68508.0,0.003636]
[1730661891570,0.145966,68509.0,68508.0,0.005636]
[1730661891814,0.145966,68509.0,68508.0,0.003636]
[1730661893504,0.145966,68509.0,68508.0,0.001636]
[1730661893726,0.146966,68509.0,68508.0,0.001636]
[1730661897032,0.145966,68509.0,68508.0,0.001636]
[1730661897232,0.145966,68509.0,68508.0,0.002636]
[1730661898562,0.145955,68514.0,68509.0,0.145965]
[1730661898800,0.145955,68514.0,68508.0,0.002636]
[1730661898801,0.22070995,68516.0,68508.0,0.149602]
[1730661899039,0.14596,68512.0,68508.0,0.149602]
[1730661899258,0.145955,68514.0,68508.0,0.295571]
[1730661899640,0.145958,68513.0,68508.0,0.002636]
[1730661899903,0.145958,68513.0,68508.0,0.148602]
[1730661900143,0.145958,68513.0,68509.0,0.145966]
[1730661900393,0.145955,68514.0,68510.0,0.145963]
[1730661900613,0.145943,68520.0,68515.0,0.145951]
[1730661900840,0.145943,68520.0,68508.0,0.003636]
[1730661900841,0.003,68514.0,68508.0,0.003636]
[1730661901080,0.28341996,68509.0,68508.0,0.001636]
[1730661902220,0.291919,68512.0,68508.0,0.001636]
[1730661902490,0.16539134,68520.0,68509.0,0.145965]
[1730661902491,0.145958,68513.0,68509.0,0.145965]